[Event "4NCL Div 1 2024-25"]
[Site "England"]
[Date "2024.11.24"]
[Round "2.21"]
[White "Turner, Max N"]
[Black "Slaby, Jerzy"]
[Result "0-1"]
[Annotator "TA"]
[ECO "D94"]
[WhiteElo "2247"]
[BlackElo "2468"]
[PlyCount "80"]
[EventDate "2024.11.23"]
[EventType "team-tourn"]
[EventCountry "ENG"]
[SourceTitle "playchess.com"]
[Source "ChessBase"]
[SourceQuality "1"]
[TimeControl "40/6000+30:3000+30"]

{[%evp 14,80,35,31,39,26,29,37,32,40,37,30,44,22,18,26,26,23,51,0,0,0,16,-15,33,-29,-10,-83,-82,-69,-18,-209,-204,-208,-209,-216,-222,-222,-183,-203,-205,-203,-210,-409,-397,-1110,-1085,-29988,-29989,-29989,-1323,-29990,-1309,-1150,-1376,-1200,-1006,-1454,-1431,-1578,-1490,-29984,-29985,-29985,-29986,-29986,-29987,-29987,-29988]} 1. d4 {[%emt 0:10:03]} Nf6 {[%emt 0:12:38]} 2. c4 {[%emt 0:00:11]} c6 {[%emt 0:00:44]} 3. Nf3 {[%emt 0:00:17]} d5 {[%emt 0:00:07]} 4. Nc3 {[%emt 0:00:53]} a6 {[%emt 0:01:12]} 5. e3 {[%emt 0:00:34]} g6 {[%emt 0:01:36]} 6. Be2 {[%emt 0:00:47]} Bg7 {[%emt 0:00:16]} 7. O-O {[%emt 0:00:17]} O-O {[%emt 0:00:37]} 8. b3 {[%emt 0:01:53]} Bg4 {[%emt 0:06:24]} 9. Bb2 {[%emt 0:00:57]} Nbd7 {[%emt 0:02:00][%cal Bb8d7,Bd7b6,Bb6c4,Bc4b2][%mdl 32]} 10. Rc1 {[%emt 0:02:21]} e6 {[%emt 0:00:42] White is slightly better.} 11. h3 {[%emt 0:03:26]} Bxf3 {[%emt 0:00:38]} 12. Bxf3 {[%emt 0:00:15]} b5 {[%emt 0:04:12]} 13. Qe2 {[%emt 0:06:01]} bxc4 {[%emt 0:04:57]} 14. bxc4 {[%emt 0:01:38]} Nb6 {[%emt 0:00:17] Inhibits Na4.} 15. c5 {[%emt 0:09:17]} Nc4 {[%emt 0:01:30]} 16. Na4 {[%emt 0:01:37] Rxc4 is the strong threat.} Nxb2 {[%emt 0:09:22]} 17. Qxb2 {[%emt 0:01:16]} Rb8 {[%emt 0:00:07] Prevents Qb7.} 18. Qd2 {[%emt 0:11:38] [#]} e5 {[%emt 0:00:34]} 19. Rb1 {[%emt 0:04:36]} (19. dxe5 $14 Nd7 20. e6 fxe6 21. Bg4) 19... Rb5 {[%emt 0:02:42]} 20. Nb6 {[%emt 0:03:28]} (20. dxe5 $11 Nd7 21. e6 fxe6 22. Bg4) 20... exd4 $17 {[%emt 0:01:20]} 21. exd4 {[%emt 0:00:32]} Re8 {[%emt 0:00:49]} ({Better is} 21... Rxb1 $1 $15 22. Rxb1 Re8) 22. a4 $2 {[%emt 0:03:00] Now White is beyond hope.} (22. Rbe1 $1 $11 {and White is okay.}) 22... Rxb1 $19 {[%emt 0:00:52]} 23. Rxb1 {[%emt 0:00:05]} Ne4 {[%emt 0:00:20]} 24. Qb2 {[%emt 0:26:13]} Ng5 {[%emt 0:03:39] [#] Hoping for ...Nxf3+.} 25. Bg4 {[%emt 0:03:30]} f5 {[%emt 0:00:48]} 26. Be2 {[%emt 0:01:09]} Ne6 {[%emt 0:03:14]} 27. Bxa6 {[%emt 0:03:25]} Bxd4 {[%emt 0:01:06]} 28. Qc2 {[%emt 0:01:20]} (28. Qd2 {was the only defense.} Bxc5 29. a5) 28... Nxc5 {[%emt 0:01:58][%cal Oc5e4] Threatens to win with ...Ne4!} (28... Bxc5 29. a5 $17) 29. Bf1 $2 {[%emt 0:01:41] White is weak on the dark squares} (29. Qd2 Qh4 30. Bf1) 29... Ne4 {[%emt 0:02:08]} 30. Qxc6 {[%emt 0:03:49]} Bxf2+ {[%emt 0:00:03]} 31. Kh1 {[%emt 0:00:37]} Ng3+ {[%emt 0:00:08]} 32. Kh2 {[%emt 0:00:05]} Nxf1+ {[%emt 0:00:15]} (32... Qb8 $142 33. Qxe8+ Qxe8 34. Nc4 dxc4 (34... Nxf1+ $2 35. Rxf1 dxc4 36. Rxf2 $19) 35. Bxc4+ Kg7 36. Bd5 Qe5 (36... Qxa4 {gets mated.} 37. Rb7+ Kh6 38. Rb2) 37. Rb7+ Kh6 38. Rxh7+ Kxh7 39. Bg8+ Kxg8 40. a5 Nf1+ 41. Kh1 Qh2#) 33. Rxf1 {[%emt 0:00:04]} Bxb6 {[%emt 0:00:07]} (33... Qxb6 34. Qxe8+ Kg7 35. Qe5+ Kf8 36. Rd1 $18 (36. Qxd5 Be3 $18) (36. a5 Qe3 $18)) 34. Kh1 {[%emt 0:01:09]} Kf7 {[%emt 0:06:04] Strongly threatening ...d4.} 35. Rb1 {[%emt 0:01:14]} Bc7 {[%emt 0:00:44]} 36. Rc1 {[%emt 0:05:58]} Re7 {[%emt 0:00:17] And now ...d4 would win.} 37. Qb5 {[%emt 0:01:25]} Qd6 {[%emt 0:00:10][%csl Gc7][%cal Rd6h2] Black mates.} 38. g3 {[%emt 0:00:05]} Qxg3 {[%emt 0:00:43][%csl Gc7][%cal Rg3h2]} 39. Qxd5+ {[%emt 0:00:08]} Kg7 {[%emt 0:00:14][%csl Gc7][%cal Rg3h2]} 40. Qd4+ {[%emt 0:00:55]} Be5 {[%emt 0:00:19] Weighted Error Value: White=1.08/Black=0.28 (precise) .  Loses game:     	White=1     	---        Mistake:       	White=4     	Black=2      Inaccurate:     	White=3     	Black=1      OK:         	White=3     	Black=10     Best:        	---       	Black=3} 0-1

[Event "4NCL Div 1 2024-25"]
[Site "England"]
[Date "2024.11.24"]
[Round "2.22"]
[White "Dong, Bao Nghia"]
[Black "Li, Harry"]
[Result "1-0"]
[Annotator "RC"]
[ECO "C78"]
[WhiteElo "2247"]
[BlackElo "2203"]
[PlyCount "85"]
[EventDate "2024.11.23"]
[EventType "team-tourn"]
[EventCountry "ENG"]
[SourceTitle "playchess.com"]
[Source "ChessBase"]
[SourceQuality "1"]
[TimeControl "40/6000+30:3000+30"]

1. e4 {[%emt 0:10:15]} e5 {[%emt 0:10:13]} 2. Nf3 {[%emt 0:00:06]} Nc6 {[%emt 0:00:04]} 3. Bb5 {[%emt 0:00:08]} a6 {[%emt 0:00:04]} 4. Ba4 {[%emt 0:00:04]} Nf6 {[%emt 0:00:04]} 5. O-O {[%emt 0:00:07]} b5 {[%emt 0:00:09]} 6. Bb3 {[%emt 0:00:06]} Bc5 {[%emt 0:00:03]} 7. c3 {[%emt 0:00:06]} d6 {[%emt 0:00:04]} 8. d4 {[%emt 0:00:04]} Bb6 {[%emt 0:00:03]} 9. h3 {[%emt 0:02:32]} Bb7 {[%emt 0:00:24]} 10. Re1 {[%emt 0:00:17]} O-O {[%emt 0:00:15]} 11. Be3 {[%emt 0:00:08]} Re8 {[%emt 0:01:58]} 12. d5 {[%emt 0:00:09]} Ne7 {[%emt 0:05:11]} 13. Bxb6 {[%emt 0:00:09]} cxb6 {[%emt 0:00:03]} 14. Bc2 {[%emt 0:00:12]} Ng6 {[%emt 0:03:35]} 15. Bd3 {[%emt 0:00:08]} Bc8 {[%emt 0:01:57]} 16. a4 {[%emt 0:00:36]} bxa4 {[%emt 0:01:33]} 17. Qxa4 {[%emt 0:00:12]} Qc7 {[%emt 0:06:32]} 18. Nbd2 {[%emt 0:02:29]} Bd7 {[%emt 0:10:32]} 19. Qc4 {[%emt 0:00:09]} Qxc4 {[%emt 0:17:39]} 20. Nxc4 {[%emt 0:00:07]} Bb5 {[%emt 0:00:05]} 21. Bf1 {[%emt 0:00:05]} Bxc4 {[%emt 0:00:11]} 22. Bxc4 {[%emt 0:00:06]} a5 {[%emt 0:15:39]} 23. Bb5 {[%emt 0:01:24]} Rec8 {[%emt 0:06:56]} 24. Nd2 {[%emt 0:02:25]} Ne7 {[%emt 0:08:01]} 25. Nc4 {[%emt 0:00:47]} Rd8 {[%emt 0:03:38]} 26. f3 {[%emt 0:00:14]} Kf8 {[%emt 0:02:13]} 27. b4 {[%emt 0:00:18]} axb4 {[%emt 0:00:14]} 28. cxb4 {[%emt 0:00:05]} Rab8 {[%emt 0:02:59]} 29. Ra6 {[%emt 0:00:52]} Nc8 {[%emt 0:02:32]} 30. Rea1 {[%emt 0:00:17]} Ne8 {[%emt 0:00:06]} 31. Bxe8 {[%emt 0:01:10]} Kxe8 {[%emt 0:00:08]} 32. b5 {[%emt 0:00:51]} Rd7 {[%emt 0:02:05]} 33. Rc1 {[%emt 0:08:46]} Kd8 {[%emt 0:00:06]} 34. Na3 {[%emt 0:00:24]} Na7 {[%emt 0:02:20]} 35. Rc6 {[%emt 0:00:52]} Nxc6 {[%emt 0:03:35]} 36. bxc6 {[%emt 0:00:07]} Re7 {[%emt 0:01:10]} 37. Nb5 {[%emt 0:00:07]} g6 {[%emt 0:00:53]} 38. Kf2 {[%emt 0:01:21]} f6 {[%emt 0:01:33]} 39. Ke3 {[%emt 0:00:07]} f5 {[%emt 0:02:45]} 40. Kd3 {[%emt 0:01:03]} fxe4+ {[%emt 0:00:10]} 41. fxe4 {[%emt 0:50:05]} Rf7 {[%emt 0:24:42]} 42. Nxd6 {[%emt 0:00:00]} Rf2 {[%emt 0:00:02]} 43. Ra7 {[%emt 0:00:00]} 1-0

[Event "4NCL Div 1 2024-25"]
[Site "England"]
[Date "2024.11.24"]
[Round "2.23"]
[White "Carroll, Thomas"]
[Black "Price, Gwilym"]
[Result "1/2-1/2"]
[Annotator "RC"]
[ECO "B07"]
[WhiteElo "2126"]
[BlackElo "2223"]
[PlyCount "79"]
[EventDate "2024.11.23"]
[EventType "team-tourn"]
[EventCountry "ENG"]
[SourceTitle "playchess.com"]
[Source "ChessBase"]
[SourceQuality "1"]
[TimeControl "40/6000+30:3000+30"]

1. d4 {[%emt 0:10:03]} g6 {[%emt 0:10:04]} 2. e4 {[%emt 0:01:46]} d6 {[%emt 0:00:09]} 3. Nf3 {[%emt 0:01:55]} Bg7 {[%emt 0:00:12]} 4. c3 {[%emt 0:00:36]} Nf6 {[%emt 1:32:05]} 5. Bd3 {[%emt 0:00:40]} O-O {[%emt 0:00:00]} 6. O-O {[%emt 0:00:41]} Nc6 {[%emt 0:01:00]} 7. d5 {[%emt 0:00:14]} Nb8 {[%emt 0:00:00]} 8. h3 {[%emt 0:00:20]} Na6 {[%emt 0:00:00]} 9. Bxa6 {[%emt 0:08:04]} bxa6 {[%emt 0:00:00]} 10. Re1 {[%emt 0:00:23]} Bb7 {[%emt 0:00:00]} 11. c4 {[%emt 0:03:57]} c6 {[%emt 0:00:00]} 12. Nc3 {[%emt 0:01:27]} cxd5 {[%emt 0:00:00]} 13. cxd5 {[%emt 0:02:07]} Nd7 {[%emt 0:00:00]} 14. Be3 {[%emt 0:06:21]} Qa5 {[%emt 0:00:00]} 15. Nd4 {[%emt 0:06:03]} Rfc8 {[%emt 0:00:00]} 16. Rc1 {[%emt 0:04:57]} Ne5 {[%emt 0:00:00]} 17. Nb3 {[%emt 0:01:55]} Qd8 {[%emt 0:00:00]} 18. Bd4 {[%emt 0:01:51]} Rc4 {[%emt 0:00:00]} 19. Ne2 {[%emt 0:10:16]} Rxc1 {[%emt 0:00:00]} 20. Nexc1 {[%emt 0:02:24]} Nd7 {[%emt 0:00:00]} 21. Bxg7 {[%emt 0:03:48]} Kxg7 {[%emt 0:00:00]} 22. Qd2 {[%emt 0:00:13]} Rc8 {[%emt 0:00:00]} 23. Qd4+ {[%emt 0:03:50]} Kg8 {[%emt 0:00:00]} 24. Qxa7 {[%emt 0:00:21]} Rc7 {[%emt 0:00:00]} 25. Qd4 {[%emt 0:05:37]} Ne5 {[%emt 0:00:00]} 26. Nd3 {[%emt 0:06:57]} Rc4 {[%emt 0:00:00]} 27. Qe3 {[%emt 0:00:13]} Nxd3 {[%emt 0:00:00]} 28. Qxd3 {[%emt 0:00:05]} Qc7 {[%emt 0:00:00]} 29. Qe3 {[%emt 0:01:47]} Rc2 {[%emt 0:00:00]} 30. Rc1 {[%emt 0:01:09]} Rxc1+ {[%emt 0:04:26]} 31. Qxc1 {[%emt 0:13:39]} Qxc1+ {[%emt 0:00:41]} 32. Nxc1 {[%emt 0:00:04]} f5 {[%emt 0:00:09]} 33. f3 {[%emt 0:05:55]} fxe4 {[%emt 0:00:17]} 34. fxe4 {[%emt 0:00:04]} e6 {[%emt 0:00:18]} 35. dxe6 {[%emt 0:00:41]} Bxe4 {[%emt 0:00:02]} 36. Kf2 {[%emt 0:00:37]} Bd5 {[%emt 0:00:28]} 37. g3 {[%emt 0:01:17]} Bxe6 {[%emt 0:00:08]} 38. h4 {[%emt 0:00:13]} Kg7 {[%emt 0:01:27]} 39. a3 {[%emt 0:02:03]} Kf6 {[%emt 0:02:36]} 40. Ne2 {[%emt 0:02:14]} 1/2-1/2

[Event "4NCL Div 1 2024-25"]
[Site "England"]
[Date "2024.11.24"]
[Round "2.24"]
[White "Hryshchenko, Kamila"]
[Black "Townsend, M Paul"]
[Result "0-1"]
[Annotator "RC"]
[ECO "C00"]
[WhiteElo "2138"]
[BlackElo "2125"]
[PlyCount "124"]
[EventDate "2024.11.23"]
[EventType "team-tourn"]
[EventCountry "ENG"]
[SourceTitle "playchess.com"]
[Source "ChessBase"]
[SourceQuality "1"]
[TimeControl "40/6000+30:3000+30"]

1. e4 {[%emt 0:10:03]} e6 {[%emt 0:10:11]} 2. d3 {[%emt 0:00:23]} d5 {[%emt 0:00:13]} 3. Nd2 {[%emt 0:00:11]} c5 {[%emt 0:00:48]} 4. Ngf3 {[%emt 0:00:12]} Nf6 {[%emt 0:00:24]} 5. g3 {[%emt 0:00:06]} Be7 {[%emt 0:00:26]} 6. Bg2 {[%emt 0:00:04]} Nc6 {[%emt 0:00:21]} 7. O-O {[%emt 0:00:06]} O-O {[%emt 0:01:29]} 8. Re1 {[%emt 0:00:18]} b5 {[%emt 0:01:04]} 9. e5 {[%emt 0:00:26]} Nd7 {[%emt 0:01:05]} 10. Nf1 {[%emt 0:00:33]} Bb7 {[%emt 0:02:45]} 11. h4 {[%emt 0:00:19]} Qc7 {[%emt 0:02:43]} 12. Bf4 {[%emt 0:00:28]} Rfc8 {[%emt 0:00:59]} 13. Ne3 {[%emt 0:05:38]} Nd4 {[%emt 0:09:40]} 14. Ng5 {[%emt 0:19:39]} h6 {[%emt 0:02:19]} 15. Nxf7 {[%emt 0:31:37]} Kxf7 {[%emt 0:00:23]} 16. c3 {[%emt 0:00:05]} Nc6 {[%emt 0:02:45]} 17. Nxd5 {[%emt 0:00:19]} Qd8 {[%emt 0:00:33]} 18. Qg4 {[%emt 0:00:41]} Qh8 {[%emt 0:43:11]} 19. h5 {[%emt 0:06:39]} Nf8 {[%emt 0:05:48]} 20. d4 {[%emt 0:26:46]} cxd4 {[%emt 0:07:58]} 21. cxd4 {[%emt 0:00:04]} Nd8 {[%emt 0:05:55]} 22. Nxe7 {[%emt 0:01:36]} Kxe7 {[%emt 0:00:09]} 23. Bxb7 {[%emt 0:00:13]} Nxb7 {[%emt 0:00:08]} 24. d5 {[%emt 0:00:06]} Nc5 {[%emt 0:05:29]} 25. Rad1 {[%emt 0:02:54]} Qh7 {[%emt 0:00:59]} 26. b4 {[%emt 0:00:47]} Na4 {[%emt 0:03:09]} 27. dxe6 {[%emt 0:02:15]} Nxe6 {[%emt 0:00:29]} 28. Rd6 {[%emt 0:00:15]} Qg8 {[%emt 0:00:35]} 29. Red1 {[%emt 0:00:53]} Rd8 {[%emt 0:00:30]} 30. Qf3 {[%emt 0:00:28]} Qe8 {[%emt 0:01:06]} 31. Qb3 {[%emt 0:01:16]} Nxf4 {[%emt 0:01:25]} 32. gxf4 {[%emt 0:00:10]} Kf8 {[%emt 0:00:21]} 33. Qd5 {[%emt 0:00:54]} Rxd6 {[%emt 0:00:31]} 34. exd6 {[%emt 0:00:31]} Rd8 {[%emt 0:00:40]} 35. Rd3 {[%emt 0:00:30]} Nb6 {[%emt 0:00:29]} 36. Qf5+ {[%emt 0:00:17]} Kg8 {[%emt 0:00:32]} 37. Qe5 {[%emt 0:00:42]} Nc4 {[%emt 0:00:38]} 38. Qd5+ {[%emt 0:00:26]} Qf7 {[%emt 0:00:14]} 39. Qxb5 {[%emt 0:00:25]} Nxd6 {[%emt 0:00:19]} 40. Qe5 {[%emt 0:00:29]} Qf6 {[%emt 0:00:40]} 41. Qe3 {[%emt 0:50:35]} a6 {[%emt 0:27:45]} 42. a4 {[%emt 0:00:00]} Re8 {[%emt 0:11:43]} 43. Qb6 {[%emt 0:00:00]} Nf7 {[%emt 0:00:57]} 44. Qxf6 {[%emt 0:00:00]} gxf6 {[%emt 0:00:01]} 45. f3 {[%emt 0:00:00]} Rd8 {[%emt 0:01:48]} 46. Rc3 {[%emt 0:00:00]} Rd4 {[%emt 0:00:48]} 47. Rb3 {[%emt 0:00:00]} Rxf4 {[%emt 0:04:04]} 48. b5 {[%emt 0:00:00]} axb5 {[%emt 0:00:06]} 49. a5 {[%emt 0:00:00]} Ra4 {[%emt 0:01:47]} 50. Rxb5 {[%emt 0:00:00]} Ra2 {[%emt 0:00:42]} 51. f4 {[%emt 0:00:00]} Kg7 {[%emt 0:02:52]} 52. Rd5 {[%emt 0:00:00]} Kf8 {[%emt 0:00:11]} 53. Rb5 {[%emt 0:00:00]} Nd6 {[%emt 0:00:24]} 54. Rb8+ {[%emt 0:00:00]} Ke7 {[%emt 0:00:07]} 55. Ra8 {[%emt 0:00:00]} Ke6 {[%emt 0:00:33]} 56. a6 {[%emt 0:00:00]} Kf5 {[%emt 0:00:17]} 57. a7 {[%emt 0:00:00]} Nb5 {[%emt 0:00:14]} 58. Rh8 {[%emt 0:00:00]} Rxa7 {[%emt 0:00:21]} 59. Rxh6 {[%emt 0:00:00]} Nd4 {[%emt 0:01:00]} 60. Kf2 {[%emt 0:00:00]} Ne6 {[%emt 0:00:22]} 61. Rh8 {[%emt 0:00:00]} Nxf4 {[%emt 0:00:44]} 62. h6 {[%emt 0:00:00]} Ng6 {[%emt 0:00:20]} 0-1

[Event "4NCL Div 1 2024-25"]
[Site "England"]
[Date "2024.11.24"]
[Round "2.25"]
[White "Olson, Hamish"]
[Black "Golding, Alex"]
[Result "0-1"]
[Annotator "TA"]
[ECO "A48"]
[WhiteElo "2374"]
[BlackElo "2404"]
[PlyCount "100"]
[EventDate "2024.11.23"]
[EventType "team-tourn"]
[EventCountry "ENG"]
[SourceTitle "playchess.com"]
[Source "ChessBase"]
[SourceQuality "1"]
[TimeControl "40/6000+30:3000+30"]

{[%evp 27,100,-11,-10,-17,-9,-65,-68,-65,-62,-68,-61,-66,0,-57,0,-81,-69,-82,-78,-89,-17,-39,-30,-32,-33,-31,-14,-33,-25,-25,-13,-16,0,0,0,-25,-10,0,0,0,0,0,0,0,0,0,37,37,43,34,45,58,27,0,0,-65,-65,-60,-60,-61,-61,-68,-62,-70,-23,-23,-20,-269,-250,-277,-214,-29981,-29982,-29981,-29980]} 1. d4 {[%emt 0:10:12]} Nf6 {[%emt 0:10:05]} 2. Nf3 {[%emt 0:00:11]} b6 {[%emt 0:00:08]} 3. Bf4 {[%emt 0:00:41]} Bb7 {[%emt 0:00:15]} 4. e3 {[%emt 0:00:35]} d6 {[%emt 0:00:23]} 5. h3 {[%emt 0:00:46]} g6 {[%emt 0:00:06]} 6. Be2 {[%emt 0:00:09]} Bg7 {[%emt 0:00:05]} 7. O-O {[%emt 0:00:14]} O-O {[%emt 0:00:03]} 8. a4 {[%emt 0:01:14]} a5 {[%emt 0:00:14]} 9. c3 {[%emt 0:01:22]} Nbd7 {[%emt 0:00:05]} 10. Nbd2 {[%emt 0:01:33]} Re8 {[%emt 0:00:25] A48: 1 d4 Nf6 2 Nf3 g6: Torre, London and Colle Systems.} 11. Bb5 {[%emt 0:05:56]} e5 {[%emt 0:03:48]} 12. dxe5 {[%emt 0:00:26]} dxe5 {[%emt 0:01:29]} 13. Bh2 {[%emt 0:00:25]} Qe7 {[%emt 0:02:19]} 14. Qc2 {[%emt 0:04:55]} Red8 {[%emt 0:03:26]} 15. Rfd1 {[%emt 0:05:32]} Ne8 {[%emt 0:00:47]} 16. Rab1 $146 {[%emt 0:04:13]} (16. Ne4 $11) ({Predecessor:} 16. Ne4 Nc5 17. Nxc5 Bxf3 18. gxf3 Qxc5 19. Qe4 Nd6 20. Qc6 Qxc6 21. Bxc6 Rac8 22. Rab1 {0-1 Rechtman,M (2437)-Pavoni,F (2441) Mare Nostrum tt 2nd B03 corr 2002}) 16... Nd6 $15 {[%emt 0:00:37]} 17. Be2 {[%emt 0:01:09]} Bc6 {[%emt 0:02:14]} 18. Ra1 {[%emt 0:07:42]} Nc5 {[%emt 0:01:20]} 19. b3 {[%emt 0:02:19]} Nf5 {[%emt 0:10:22]} (19... Bf6 $15) 20. Ne1 {[%emt 0:09:31]} (20. Nc4 $11) 20... Nd6 {[%emt 0:16:46]} ({Black should play} 20... e4 $15) 21. Bf3 {[%emt 0:02:35]} (21. Nef3 $11 {remains equal.}) 21... e4 $17 {[%emt 0:02:28]} 22. Be2 {[%emt 0:01:19]} Bd5 {[%emt 0:03:00]} 23. b4 {[%emt 0:07:30] [#]} Nd3 {[%emt 0:04:17]} (23... axb4 $1 $17 24. cxb4 Na6 (24... Bxa1 25. bxc5 Nf5 26. Rxa1 $18)) 24. Nxd3 {[%emt 0:07:34]} exd3 {[%emt 0:00:05]} 25. Bxd3 {[%emt 0:00:15]} (25. Qxd3 $2 Nc4 26. b5 (26. Nxc4 $2 Be4 $19) 26... Nxd2 (26... Nb2 27. Qc2 $17) 27. Qxd2 (27. Rxd2 $2 Be4 $19) 27... Bb3 $19 (27... Bxg2 28. Qa2 $17)) 25... axb4 {[%emt 0:00:09]} 26. cxb4 {[%emt 0:03:26]} Bxa1 {[%emt 0:00:06]} 27. Rxa1 {[%emt 0:00:13]} Nb7 {[%emt 0:09:53]} 28. Qc3 {[%emt 0:07:24]} (28. Qxc7 $2 Qxb4 29. Nf1 Rac8 $19 (29... Rxa4 30. Rb1 $17)) (28. Bxc7 $2 Rdc8 29. Rc1 Nd6 $19 (29... Qxb4 $2 30. Qd1 $17)) 28... c5 {[%emt 0:00:24]} 29. b5 {[%emt 0:00:58]} f6 {[%emt 0:02:40]} (29... Na5 {with more complications.} 30. Bc2 Bb7 31. Bf4 Rd7) 30. e4 {[%emt 0:02:11]} Bf7 {[%emt 0:01:21]} 31. Nf3 {[%emt 0:02:24]} c4 {[%emt 0:08:25]} 32. Bc2 {[%emt 0:00:29]} Nc5 {[%emt 0:00:23]} 33. e5 {[%emt 0:00:57]} Nd3 {[%emt 0:02:16]} 34. exf6 {[%emt 0:01:52]} Qb4 {[%emt 0:01:36]} 35. Be5 {[%emt 0:03:39]} Qxc3 {[%emt 0:02:07]} 36. Bxc3 {[%emt 0:00:02]} Rd5 {[%emt 0:06:00]} 37. Nd4 {[%emt 0:03:24]} Rd6 {[%emt 0:04:43]} 38. Nc6 {[%emt 0:01:46]} Bd5 {[%emt 0:00:23]} 39. Ne7+ {[%emt 0:08:40]} Kf7 {[%emt 0:00:06]} 40. Rd1 {[%emt 0:01:41]} (40. Nxd5 $5 Rxd5 41. Bd1 $11) 40... Bb7 {[%emt 0:02:16]} 41. a5 {[%emt 0:33:03]} ({White must play} 41. h4 $11) 41... bxa5 $15 {[%emt 0:21:34]} 42. Bb1 $1 {[%emt 0:01:01]} Rxf6 $1 {[%emt 0:04:10]} 43. Bxf6 {[%emt 0:00:26]} Kxf6 {[%emt 0:00:04]} 44. Bxd3 {[%emt 0:02:35]} cxd3 {[%emt 0:00:12]} ({Much weaker is} 44... Kxe7 $6 45. Bxc4 a4 46. f3 $11) 45. Nc6 $1 {[%emt 0:00:37]} Bxc6 {[%emt 0:00:17]} (45... a4 $1 $15 46. Rxd3 a3) 46. bxc6 $11 {[%emt 0:00:02]} a4 {[%emt 0:01:59]} 47. c7 $2 {[%emt 0:05:26] [#]} (47. Rxd3 $11 {and White is okay.} a3 48. Rd1) 47... a3 $1 $19 {[%emt 0:03:30]} (47... Rc8 48. Rxd3 Rxc7 49. Ra3 $17) 48. Ra1 {[%emt 0:01:11]} (48. Rxd3 $2 {too greedy.} a2 49. Rf3+ Ke5 (49... Kg7 $2 50. Ra3 $19) 50. Re3+ Kd4 $19) 48... d2 {[%emt 0:01:05]} 49. f4 $2 {[%emt 0:02:37]} (49. Kf1 $19 Re8 50. f4) 49... Rc8 {[%emt 0:01:16]} 50. Kf2 {[%emt 0:01:47]} Rxc7 {[%emt 0:00:42]} 0-1